[Event "FIDE WYCC Open U14 2023"]
[Site "Montesilvano"]
[Date "2023.11.23"]
[Round "10.29"]
[White "Sharshenbekov, Emir"]
[Black "Sodbilegt, Naranbold"]
[Result "0-1"]
[ECO "B26"]
[WhiteElo "1893"]
[BlackElo "2151"]
[Annotator "RC"]
[PlyCount "64"]
[EventDate "2023.11.13"]
[EventType "swiss"]
[EventCountry "ITA"]
[SourceTitle "playchess.com"]
[Source "ChessBase"]
[SourceQuality "1"]
[TimeControl "40/5400+30:1800+30"]

1. e4 {[%emt 0:01:57]} c5 {[%emt 0:00:06]} 2. Nc3 {[%emt 0:00:13]} Nc6 {[%emt 0:00:07]} 3. g3 {[%emt 0:00:17]} g6 {[%emt 0:00:30]} 4. Bg2 {[%emt 0:00:25]} Bg7 {[%emt 0:00:43]} 5. d3 {[%emt 0:01:03]} d6 {[%emt 0:00:49]} 6. Be3 {[%emt 0:00:44]} Rb8 {[%emt 0:02:10]} 7. Nf3 {[%emt 0:02:21]} Nf6 {[%emt 0:02:54]} 8. h3 {[%emt 0:00:09]} O-O {[%emt 0:01:10]} 9. O-O {[%emt 0:00:20]} b5 {[%emt 0:06:23]} 10. Re1 {[%emt 0:00:53]} e5 {[%emt 0:06:40]} 11. a3 {[%emt 0:23:41]} Nd4 {[%emt 0:06:27]} 12. Kh2 {[%emt 0:01:14]} Ne8 {[%emt 0:04:14]} 13. b4 {[%emt 0:23:01]} Nc7 {[%emt 0:21:38]} 14. Nb1 {[%emt 0:12:36]} f5 {[%emt 0:04:30]} 15. c3 {[%emt 0:06:02]} Nxf3+ {[%emt 0:01:22]} 16. Bxf3 {[%emt 0:00:03]} f4 {[%emt 0:01:17]} 17. Bd2 {[%emt 0:00:24]} Ne6 {[%emt 0:02:17]} 18. Bg2 {[%emt 0:00:22]} Qf6 {[%emt 0:05:25]} 19. a4 {[%emt 0:04:36]} a6 {[%emt 0:09:07]} 20. axb5 {[%emt 0:01:23]} axb5 {[%emt 0:00:10]} 21. bxc5 {[%emt 0:07:18]} Nxc5 {[%emt 0:01:03]} 22. Bc1 {[%emt 0:03:14]} Be6 {[%emt 0:04:10]} 23. Ra3 {[%emt 0:01:03]} Bh6 {[%emt 0:01:09]} 24. Kh1 {[%emt 0:02:51]} b4 {[%emt 0:07:15]} 25. cxb4 {[%emt 0:00:25]} Rxb4 {[%emt 0:00:03]} 26. Bd2 {[%emt 0:06:07]} Rb2 {[%emt 0:02:21]} 27. d4 {[%emt 0:00:40]} Nb3 {[%emt 0:04:48]} 28. Bc3 {[%emt 0:00:33]} Rxf2 {[%emt 0:01:48]} 29. dxe5 {[%emt 0:00:24]} dxe5 {[%emt 0:00:20]} 30. Rxb3 {[%emt 0:00:27]} fxg3 {[%emt 0:01:03]} 31. Rg1 {[%emt 0:00:39]} Bxh3 {[%emt 0:00:20]} 32. Bxe5 {[%emt 0:00:24]} Bxg2+ {[%emt 0:00:53]} 0-1

[Event "FIDE WYCC Open U14 2023"]
[Site "Montesilvano"]
[Date "2023.11.23"]
[Round "10.30"]
[White "Lira, Suan Bruno Fernandes"]
[Black "Farias, David Nuno M E"]
[Result "1-0"]
[ECO "D86"]
[WhiteElo "1858"]
[BlackElo "2149"]
[Annotator "NA RC"]
[PlyCount "97"]
[EventDate "2023.11.13"]
[EventType "swiss"]
[EventCountry "ITA"]
[SourceTitle "playchess.com"]
[Source "ChessBase"]
[SourceQuality "1"]
[TimeControl "40/5400+30:1800+30"]

1. d4 {[%emt 0:00:03]} Nf6 {[%emt 0:00:21]} 2. c4 {[%emt 0:00:08]} g6 {[%emt 0:00:21]} 3. Nc3 {[%emt 0:01:10]} d5 {[%emt 0:00:20]} 4. cxd5 {[%emt 0:00:19]} Nxd5 {[%emt 0:00:02]} 5. e4 {[%emt 0:00:08]} Nxc3 {[%emt 0:00:02]} 6. bxc3 {[%emt 0:00:06]} Bg7 {[%emt 0:00:01]} 7. Bc4 {[%emt 0:00:12]} c5 {[%emt 0:00:21]} 8. Ne2 {[%emt 0:00:11]} Nc6 {[%emt 0:00:28]} 9. Be3 {[%emt 0:00:15]} O-O {[%emt 0:00:17]} 10. O-O {[%emt 0:00:18]} e6 {[%emt 0:00:33]} 11. Rc1 {[%emt 0:01:45]} b6 {[%emt 0:02:08]} 12. Qd2 {[%emt 0:00:42]} Bb7 {[%emt 0:07:43]} 13. f3 {[%emt 0:02:15]} Na5 {[%emt 0:15:12]} 14. Bd3 {[%emt 0:00:33]} Qd7 {[%emt 0:08:46]} 15. h4 {[%emt 0:18:46]} h5 {[%emt 0:07:22]} 16. e5 {[%emt 0:24:16]} Rfc8 17. Bg5 {[%emt 0:16:20]} a6 {[%emt 0:36:24]} 18. Qf4 {[%emt 0:05:16]} Nc6 {[%emt 0:04:56]} 19. Rcd1 {[%emt 0:09:23]} cxd4 {[%emt 0:01:53]} 20. Bf6 {[%emt 0:03:02]} Ne7 {[%emt 0:03:20]} 21. Be4 {[%emt 0:07:32]} Nf5 {[%emt 0:05:23]} 22. Nxd4 {[%emt 0:04:27]} Nxd4 {[%emt 0:03:53]} 23. Rxd4 {[%emt 0:00:39]} Qc7 {[%emt 0:01:14]} 24. Bxg7 {[%emt 0:00:49]} Kxg7 25. Qf6+ {[%emt 0:00:23]} Kg8 {[%emt 0:00:33]} 26. Bxg6 {[%emt 0:03:32]} fxg6 {[%emt 0:00:54]} 27. Qxg6+ {[%emt 0:00:13]} Qg7 {[%emt 0:00:07]} 28. Qxg7+ {[%emt 0:00:11]} Kxg7 {[%emt 0:00:01]} 29. Rd7+ {[%emt 0:00:07]} Kg6 {[%emt 0:00:31]} 30. Rxb7 {[%emt 0:00:05]} Rxc3 {[%emt 0:00:49]} 31. Rxb6 {[%emt 0:00:55]} Kf5 {[%emt 0:00:04]} 32. Rb7 {[%emt 0:01:33]} Rg8 {[%emt 0:01:54]} 33. Rf2 {[%emt 0:00:32]} Rc4 {[%emt 0:00:32]} 34. Rf7+ {[%emt 0:00:50]} Kxe5 {[%emt 0:00:27]} 35. Re2+ {[%emt 0:00:18]} Kd5 {[%emt 0:00:33]} 36. Ra7 {[%emt 0:00:27]} Ra4 {[%emt 0:00:29]} 37. Rd7+ {[%emt 0:00:39]} Kc5 {[%emt 0:00:34]} 38. Re7 {[%emt 0:00:30]} Rxh4 {[%emt 0:00:12]} 39. R7xe6 {[%emt 0:00:05]} Rc4 {[%emt 0:00:45]} 40. Rxa6 {[%emt 0:00:00]} h4 {[%emt 0:00:00]} 41. Rh6 {[%emt 0:01:31]} Rg3 {[%emt 0:02:05]} 42. Kf2 {[%emt 0:04:09]} Kd5 {[%emt 0:02:51]} 43. Rhe6 {[%emt 0:04:41]} Rg5 {[%emt 0:02:38]} 44. R6e4 {[%emt 0:02:13]} h3 {[%emt 0:00:40]} 45. Rd2+ {[%emt 0:01:12]} Kc5 {[%emt 0:00:03]} 46. Rxc4+ {[%emt 0:00:17]} Kxc4 {[%emt 0:00:04]} 47. gxh3 {[%emt 0:00:06]} Kc3 {[%emt 0:00:33]} 48. Re2 {[%emt 0:00:22]} Kd3 {[%emt 0:00:06]} 49. Re4 {[%emt 0:00:41]} 1-0

[Event "FIDE WYCC Open U14 2023"]
[Site "Montesilvano"]
[Date "2023.11.23"]
[Round "10.31"]
[White "Chanturia, Giorgi"]
[Black "Malinowsky, Levi"]
[Result "0-1"]
[ECO "B90"]
[WhiteElo "1668"]
[BlackElo "2135"]
[Annotator "NA RC"]
[PlyCount "62"]
[EventDate "2023.11.13"]
[EventType "swiss"]
[EventCountry "ITA"]
[SourceTitle "playchess.com"]
[Source "ChessBase"]
[SourceQuality "1"]
[TimeControl "40/5400+30:1800+30"]

1. e4 c5 {[%emt 0:00:07]} 2. Nf3 {[%emt 0:00:29]} d6 {[%emt 0:00:23]} 3. d4 {[%emt 0:00:04]} cxd4 {[%emt 0:00:05]} 4. Nxd4 {[%emt 0:00:01]} Nf6 {[%emt 0:00:09]} 5. Nc3 {[%emt 0:00:05]} a6 {[%emt 0:00:05]} 6. h3 {[%emt 0:00:44]} e6 {[%emt 0:01:19]} 7. g4 {[%emt 0:01:06]} Nfd7 {[%emt 0:01:14]} 8. Bg2 {[%emt 0:00:20]} Be7 {[%emt 0:01:21]} 9. Be3 {[%emt 0:00:07]} Qc7 {[%emt 0:01:18]} 10. Qe2 {[%emt 0:00:37]} O-O {[%emt 0:01:34]} 11. a4 {[%emt 0:08:46]} Nc6 {[%emt 0:03:03]} 12. O-O-O {[%emt 0:01:22]} Na5 {[%emt 0:05:12]} 13. f4 {[%emt 0:13:49]} Nb6 {[%emt 0:02:03]} 14. Qf2 {[%emt 0:10:15]} Nbc4 {[%emt 0:04:01]} 15. b3 {[%emt 0:01:48]} Nxe3 {[%emt 0:00:59]} 16. Qxe3 {[%emt 0:00:02]} Bd7 {[%emt 0:02:14]} 17. e5 {[%emt 0:16:43]} dxe5 {[%emt 0:03:51]} 18. fxe5 {[%emt 0:00:25]} Rac8 {[%emt 0:03:11]} 19. Rd3 {[%emt 0:06:11]} b5 {[%emt 0:03:44]} 20. axb5 {[%emt 0:01:22]} Bxb5 {[%emt 0:01:02]} 21. Ncxb5 {[%emt 0:01:26]} axb5 {[%emt 0:00:08]} 22. Qe4 {[%emt 0:11:05]} Rfd8 {[%emt 0:03:50]} 23. Kb1 {[%emt 0:05:38]} Rd5 {[%emt 0:11:47]} 24. Re1 {[%emt 0:00:02]} Nc4 {[%emt 0:13:33]} 25. bxc4 {[%emt 0:14:58]} bxc4 {[%emt 0:00:00]} 26. Rde3 {[%emt 0:02:08]} Rb8+ {[%emt 0:06:14]} 27. Nb3 {[%emt 0:00:01]} cxb3 {[%emt 0:00:36]} 28. Rxb3 {[%emt 0:01:22]} Rxb3+ {[%emt 0:00:21]} 29. cxb3 {[%emt 0:00:02]} Qc3 {[%emt 0:01:19]} 30. b4 {[%emt 0:03:57]} Qb3+ {[%emt 0:00:48]} 31. Kc1 {[%emt 0:00:18]} Bg5+ {[%emt 0:00:09]} 0-1

[Event "FIDE WYCC Open U14 2023"]
[Site "Montesilvano"]
[Date "2023.11.23"]
[Round "10.32"]
[White "Gut, Lionel"]
[Black "Tamer Waguih, Farid"]
[Result "1-0"]
[ECO "B10"]
[WhiteElo "2113"]
[BlackElo "1893"]
[Annotator "NA RC"]
[PlyCount "93"]
[EventDate "2023.11.13"]
[EventType "swiss"]
[EventCountry "ITA"]
[SourceTitle "playchess.com"]
[Source "ChessBase"]
[SourceQuality "1"]
[TimeControl "40/5400+30:1800+30"]

1. e4 {[%emt 0:00:03]} c6 {[%emt 0:00:30]} 2. Nf3 {[%emt 0:00:04]} d5 {[%emt 0:00:07]} 3. exd5 {[%emt 0:00:03]} cxd5 {[%emt 0:00:04]} 4. d4 {[%emt 0:00:03]} Nf6 {[%emt 0:00:57]} 5. Ne5 {[%emt 0:00:14]} g6 {[%emt 0:01:22]} 6. c3 {[%emt 0:07:10]} Bg7 {[%emt 0:00:28]} 7. Bd3 {[%emt 0:00:10]} O-O {[%emt 0:01:31]} 8. O-O {[%emt 0:00:46]} Nfd7 {[%emt 0:10:14]} 9. Re1 {[%emt 0:02:33]} Nxe5 {[%emt 0:03:24]} 10. dxe5 {[%emt 0:00:02]} Nd7 {[%emt 0:04:13]} 11. Bf4 {[%emt 0:01:22]} f6 {[%emt 0:04:08]} 12. exf6 {[%emt 0:02:56]} Nxf6 {[%emt 0:07:37]} 13. Be5 {[%emt 0:04:45]} Ng4 {[%emt 0:05:19]} 14. Bg3 {[%emt 0:00:45]} Qb6 {[%emt 0:03:17]} 15. Qc2 {[%emt 0:02:21]} e5 {[%emt 0:04:33]} 16. h3 {[%emt 0:01:42]} e4 {[%emt 0:01:55]} 17. Bxe4 {[%emt 0:04:07]} dxe4 {[%emt 0:00:52]} 18. hxg4 {[%emt 0:00:05]} Bxg4 {[%emt 0:05:37]} 19. Nd2 {[%emt 0:01:29]} Bf5 {[%emt 0:08:07]} 20. Nc4 {[%emt 0:00:44]} Qc5 {[%emt 0:02:41]} 21. Ne3 {[%emt 0:00:32]} Kh8 {[%emt 0:05:32]} 22. Rad1 {[%emt 0:01:25]} Rad8 {[%emt 0:00:49]} 23. Qb3 {[%emt 0:03:52]} Qe7 {[%emt 0:09:18]} 24. Qb5 {[%emt 0:20:34]} b6 {[%emt 0:11:23]} 25. Rxd8 {[%emt 0:07:37]} Qxd8 {[%emt 0:00:01]} 26. Rd1 {[%emt 0:00:21]} Qc8 {[%emt 0:01:22]} 27. Be5 {[%emt 0:06:16]} Qe6 {[%emt 0:02:50]} 28. Bxg7+ {[%emt 0:00:47]} Kxg7 {[%emt 0:00:01]} 29. Qa4 {[%emt 0:00:30]} Rf7 {[%emt 0:01:41]} 30. Rd4 {[%emt 0:15:04]} Qf6 {[%emt 0:01:09]} 31. Qc2 {[%emt 0:03:06]} Qe6 {[%emt 0:00:41]} 32. a3 {[%emt 0:04:12]} Qf6 {[%emt 0:01:18]} 33. Qd2 {[%emt 0:00:11]} Qg5 {[%emt 0:03:05]} 34. Rd5 {[%emt 0:00:52]} Qf6 {[%emt 0:00:35]} 35. Rd6 {[%emt 0:01:26]} Qg5 {[%emt 0:00:34]} 36. Qd4+ {[%emt 0:00:12]} Kh6 {[%emt 0:00:15]} 37. Qe5 {[%emt 0:02:10]} Bg4 {[%emt 0:00:42]} 38. Qh2+ {[%emt 0:01:24]} Kg7 {[%emt 0:00:40]} 39. Rd5 {[%emt 0:00:42]} Bf5 {[%emt 0:00:23]} 40. Qe5+ {[%emt 0:00:00]} Qf6 {[%emt 0:00:00]} 41. Qg3 {[%emt 0:09:45]} Qe6 {[%emt 0:08:50]} 42. Rd6 {[%emt 0:05:11]} Qe8 {[%emt 0:02:41]} 43. c4 {[%emt 0:05:06]} Kf8 {[%emt 0:08:50]} 44. Qg5 {[%emt 0:02:13]} Qe5 {[%emt 0:02:56]} 45. Rd8+ {[%emt 0:00:04]} Kg7 {[%emt 0:00:15]} 46. Ng4 {[%emt 0:00:10]} Qd5 47. Rxd5 1-0

[Event "FIDE WYCC Open U14 2023"]
[Site "Montesilvano"]
[Date "2023.11.23"]
[Round "10.33"]
[White "Zhang, Brian"]
[Black "Vommaro, Stanislao"]
[Result "1-0"]
[ECO "B40"]
[WhiteElo "1867"]
[BlackElo "2083"]
[Annotator "NA RC"]
[PlyCount "143"]
[EventDate "2023.11.13"]
[EventType "swiss"]
[EventCountry "ITA"]
[SourceTitle "playchess.com"]
[Source "ChessBase"]
[SourceQuality "1"]
[TimeControl "40/5400+30:1800+30"]

1. e4 {[%emt 0:00:10]} c5 {[%emt 0:01:04]} 2. Nf3 {[%emt 0:00:19]} e6 {[%emt 0:01:17]} 3. c3 {[%emt 0:10:22]} Nf6 {[%emt 0:03:04]} 4. e5 {[%emt 0:02:58]} Nd5 {[%emt 0:01:02]} 5. d4 {[%emt 0:06:11]} cxd4 {[%emt 0:01:46]} 6. cxd4 {[%emt 0:01:53]} d6 {[%emt 0:04:02]} 7. a3 {[%emt 0:11:02]} Nc6 {[%emt 0:04:54]} 8. Bd3 {[%emt 0:03:44]} dxe5 {[%emt 0:11:46]} 9. dxe5 {[%emt 0:02:02]} Qc7 {[%emt 0:05:34]} 10. O-O {[%emt 0:16:11]} Be7 {[%emt 0:12:27]} 11. Qe2 {[%emt 0:03:23]} Bd7 {[%emt 0:20:16]} 12. Bd2 {[%emt 0:03:19]} f5 {[%emt 0:15:11]} 13. exf6 {[%emt 0:11:03]} Bxf6 {[%emt 0:00:19]} 14. Bc4 {[%emt 0:05:20]} O-O {[%emt 0:02:37]} 15. Nc3 {[%emt 0:04:52]} Nxc3 {[%emt 0:00:42]} 16. Bxc3 {[%emt 0:01:05]} Bxc3 {[%emt 0:00:50]} 17. bxc3 {[%emt 0:00:41]} Rae8 {[%emt 0:04:28]} 18. Rad1 {[%emt 0:01:05]} Kh8 {[%emt 0:01:58]} 19. Rfe1 {[%emt 0:01:51]} e5 {[%emt 0:04:11]} 20. Ng5 {[%emt 0:03:30]} Bf5 {[%emt 0:00:38]} 21. Ne4 {[%emt 0:02:32]} Bxe4 {[%emt 0:01:24]} 22. Qxe4 {[%emt 0:00:13]} Qb6 {[%emt 0:00:56]} 23. Qe3 {[%emt 0:03:45]} Qa5 {[%emt 0:00:52]} 24. Bd5 {[%emt 0:02:14]} Qxa3 {[%emt 0:00:18]} 25. Bxc6 {[%emt 0:01:09]} bxc6 {[%emt 0:00:02]} 26. Ra1 {[%emt 0:00:26]} Qb2 {[%emt 0:00:48]} 27. Rxa7 {[%emt 0:00:40]} Rf6 {[%emt 0:00:58]} 28. f3 {[%emt 0:01:13]} e4 {[%emt 0:00:35]} 29. Qxe4 {[%emt 0:01:13]} Ref8 {[%emt 0:00:30]} 30. Qd4 {[%emt 0:00:23]} Rg6 {[%emt 0:00:29]} 31. g3 {[%emt 0:00:35]} h6 {[%emt 0:00:18]} 32. Qe4 {[%emt 0:00:32]} Qxc3 {[%emt 0:00:38]} 33. Qxg6 {[%emt 0:00:31]} Qxe1+ {[%emt 0:00:04]} 34. Kg2 {[%emt 0:00:06]} Qe2+ {[%emt 0:00:29]} 35. Kh3 {[%emt 0:00:12]} Qe5 {[%emt 0:00:38]} 36. Qxc6 {[%emt 0:01:00]} Rf5 {[%emt 0:00:52]} 37. Ra8+ {[%emt 0:00:38]} Kh7 {[%emt 0:00:03]} 38. Qe4 {[%emt 0:00:31]} Qxe4 {[%emt 0:00:50]} 39. fxe4 {[%emt 0:00:05]} Re5 {[%emt 0:00:19]} 40. Ra4 {[%emt 0:00:00]} h5 {[%emt 0:00:00]} 41. Kg2 {[%emt 0:03:51]} Kg6 {[%emt 0:07:54]} 42. Kf3 {[%emt 0:01:09]} Kf6 {[%emt 0:00:58]} 43. Ra6+ {[%emt 0:02:31]} Kf7 {[%emt 0:01:03]} 44. Rd6 {[%emt 0:04:57]} Ra5 {[%emt 0:07:07]} 45. Rd5 {[%emt 0:02:33]} Ra3+ {[%emt 0:01:35]} 46. Kf4 {[%emt 0:00:20]} h4 {[%emt 0:00:30]} 47. Rh5 {[%emt 0:05:11]} hxg3 {[%emt 0:00:48]} 48. hxg3 {[%emt 0:00:12]} Ra1 {[%emt 0:04:25]} 49. Rb5 {[%emt 0:01:38]} Rf1+ {[%emt 0:05:01]} 50. Kg5 {[%emt 0:02:10]} Re1 {[%emt 0:01:10]} 51. Rf5+ {[%emt 0:02:49]} Ke6 {[%emt 0:01:11]} 52. Rf4 {[%emt 0:04:47]} Re3 {[%emt 0:04:39]} 53. g4 {[%emt 0:02:07]} Rg3 {[%emt 0:00:15]} 54. Rf5 {[%emt 0:00:42]} Re3 {[%emt 0:00:17]} 55. Kg6 {[%emt 0:02:44]} Rxe4 {[%emt 0:00:38]} 56. g5 {[%emt 0:00:11]} Rd4 {[%emt 0:01:11]} 57. Rf7 {[%emt 0:00:42]} Rd5 {[%emt 0:00:37]} 58. Rxg7 {[%emt 0:00:33]} Rf5 {[%emt 0:00:28]} 59. Ra7 {[%emt 0:00:32]} Rf1 {[%emt 0:00:18]} 60. Kg7 {[%emt 0:00:21]} Rg1 {[%emt 0:00:28]} 61. g6 {[%emt 0:00:12]} Kf5 {[%emt 0:00:27]} 62. Rf7+ {[%emt 0:00:36]} Ke6 {[%emt 0:00:37]} 63. Rf2 {[%emt 0:00:20]} Rg3 {[%emt 0:00:25]} 64. Kh7 {[%emt 0:00:19]} Rh3+ {[%emt 0:00:10]} 65. Kg8 {[%emt 0:00:12]} Ke7 {[%emt 0:00:19]} 66. g7 {[%emt 0:00:23]} Rh4 {[%emt 0:01:04]} 67. Re2+ {[%emt 0:01:06]} Kd7 {[%emt 0:00:26]} 68. Re3 {[%emt 0:01:07]} Rf4 {[%emt 0:00:34]} 69. Rg3 {[%emt 0:01:03]} Ke7 {[%emt 0:00:42]} 70. Kh7 {[%emt 0:00:33]} Rh4+ {[%emt 0:00:13]} 71. Kg6 {[%emt 0:00:13]} Rf4 {[%emt 0:00:24]} 72. g8=Q {[%emt 0:00:38]} 1-0

[Event "FIDE WYCC Open U14 2023"]
[Site "Montesilvano"]
[Date "2023.11.23"]
[Round "10.34"]
[White "Kazantzoglou, Stefanos"]
[Black "Zhang, Kendrick Botong"]
[Result "1-0"]
[ECO "B23"]
[WhiteElo "2031"]
[BlackElo "1876"]
[Annotator "NA RC"]
[PlyCount "91"]
[EventDate "2023.11.13"]
[EventType "swiss"]
[EventCountry "ITA"]
[SourceTitle "playchess.com"]
[Source "ChessBase"]
[SourceQuality "1"]
[TimeControl "40/5400+30:1800+30"]

1. e4 {[%emt 0:00:01]} c5 {[%emt 0:00:06]} 2. Nc3 {[%emt 0:00:04]} e6 {[%emt 0:01:23]} 3. d4 {[%emt 0:00:04]} cxd4 {[%emt 0:00:08]} 4. Qxd4 {[%emt 0:00:03]} Nc6 {[%emt 0:00:12]} 5. Qe3 {[%emt 0:00:25]} Nf6 {[%emt 0:00:17]} 6. Nf3 {[%emt 0:00:01]} Bb4 {[%emt 0:00:21]} 7. Bd2 {[%emt 0:00:03]} O-O {[%emt 0:00:44]} 8. e5 {[%emt 0:00:28]} Bxc3 {[%emt 0:00:31]} 9. Qxc3 {[%emt 0:00:04]} Ne4 {[%emt 0:09:32]} 10. Qe3 {[%emt 0:00:48]} Nxd2 {[%emt 0:04:12]} 11. Qxd2 {[%emt 0:00:02]} Qc7 {[%emt 0:00:52]} 12. Qc3 {[%emt 0:02:22]} Rd8 {[%emt 0:04:16]} 13. Bd3 {[%emt 0:00:47]} d6 {[%emt 0:06:58]} 14. exd6 {[%emt 0:03:19]} Qxd6 {[%emt 0:09:39]} 15. O-O-O {[%emt 0:01:51]} Nb4 {[%emt 0:20:22]} 16. Bc4 {[%emt 0:04:04]} Nd5 {[%emt 0:05:01]} 17. Qe5 {[%emt 0:03:44]} Qxe5 {[%emt 0:06:59]} 18. Nxe5 {[%emt 0:00:02]} f6 {[%emt 0:02:13]} 19. Nf3 {[%emt 0:01:59]} Kf7 {[%emt 0:01:40]} 20. Rhe1 {[%emt 0:02:57]} b6 {[%emt 0:03:15]} 21. Bxd5 {[%emt 0:02:33]} Rxd5 {[%emt 0:01:01]} 22. Rxd5 {[%emt 0:00:02]} exd5 {[%emt 0:00:08]} 23. Nd4 {[%emt 0:00:18]} Bd7 {[%emt 0:02:39]} 24. Re3 {[%emt 0:01:11]} Re8 {[%emt 0:03:49]} 25. Rxe8 {[%emt 0:03:52]} Kxe8 {[%emt 0:01:02]} 26. b4 {[%emt 0:03:14]} a6 {[%emt 0:03:34]} 27. Kd2 {[%emt 0:04:35]} Ke7 {[%emt 0:00:16]} 28. Ke3 {[%emt 0:00:08]} Kd6 {[%emt 0:00:46]} 29. f4 {[%emt 0:06:04]} g6 {[%emt 0:03:10]} 30. Ne2 {[%emt 0:02:52]} Bb5 {[%emt 0:03:55]} 31. Nc3 {[%emt 0:00:42]} Bc4 {[%emt 0:05:27]} 32. Kd4 {[%emt 0:00:17]} Kc6 {[%emt 0:00:51]} 33. a4 {[%emt 0:01:28]} Kd6 {[%emt 0:01:06]} 34. Nd1 {[%emt 0:00:39]} Ba2 {[%emt 0:00:34]} 35. Ne3 {[%emt 0:00:36]} b5 {[%emt 0:00:27]} 36. a5 {[%emt 0:00:08]} h5 {[%emt 0:00:33]} 37. g3 {[%emt 0:02:12]} Kc6 {[%emt 0:00:30]} 38. g4 {[%emt 0:00:59]} hxg4 {[%emt 0:00:29]} 39. Nxg4 {[%emt 0:00:02]} g5 {[%emt 0:00:29]} 40. fxg5 {[%emt 0:00:00]} fxg5 {[%emt 0:00:00]} 41. Ne5+ {[%emt 0:00:42]} Kc7 {[%emt 0:08:08]} 42. Nf7 {[%emt 0:00:37]} Bb1 {[%emt 0:00:52]} 43. Nxg5 {[%emt 0:00:03]} Bxc2 {[%emt 0:00:12]} 44. Ne6+ {[%emt 0:00:24]} Kd7 {[%emt 0:03:12]} 45. Nc5+ {[%emt 0:00:01]} Kc6 {[%emt 0:00:10]} 46. Nxa6 {[%emt 0:00:05]} 1-0

[Event "FIDE WYCC Open U14 2023"]
[Site "Montesilvano"]
[Date "2023.11.23"]
[Round "10.35"]
[White "Besou, Hussain"]
[Black "Ahn, Maximilian"]
[Result "*"]
[WhiteElo "2341"]
[BlackElo "1813"]
[Annotator "RC"]
[PlyCount "54"]
[EventDate "2023.11.13"]
[EventType "swiss"]
[EventCountry "ITA"]
[SourceTitle "playchess.com"]
[Source "ChessBase"]
[SourceQuality "1"]
[TimeControl "40/5400+30:1800+30"]

1. e4 {[%emt 0:00:02]} d6 {[%emt 0:00:14]} 2. d4 {[%emt 0:00:06]} g6 {[%emt 0:00:09]} 3. c4 {[%emt 0:00:12]} Bg7 {[%emt 0:00:16]} 4. Nc3 {[%emt 0:00:08]} Nf6 {[%emt 0:00:22]} 5. h3 {[%emt 0:00:21]} Nc6 {[%emt 0:00:24]} 6. d5 {[%emt 0:00:43]} Ne5 {[%emt 0:00:21]} 7. f4 {[%emt 0:00:54]} Ned7 {[%emt 0:00:13]} 8. g4 {[%emt 0:00:24]} c6 {[%emt 0:06:58]} 9. Bg2 {[%emt 0:00:43]} cxd5 {[%emt 0:02:14]} 10. cxd5 {[%emt 0:00:10]} O-O {[%emt 0:03:18]} 11. Be3 {[%emt 0:00:17]} Nb6 {[%emt 0:11:10]} 12. Qb3 {[%emt 0:08:07]} e6 {[%emt 0:06:29]} 13. O-O-O {[%emt 0:03:00]} exd5 {[%emt 0:06:20]} 14. exd5 {[%emt 0:00:51]} Bd7 {[%emt 0:05:04]} 15. Bd4 {[%emt 0:07:27]} Qc7 {[%emt 0:05:06]} 16. Kb1 {[%emt 0:00:23]} Nc4 {[%emt 0:05:33]} 17. Nge2 {[%emt 0:07:37]} a5 {[%emt 0:10:06]} 18. Nb5 {[%emt 0:12:24]} Bxb5 {[%emt 0:09:38]} 19. Qxb5 {[%emt 0:00:51]} Rfc8 {[%emt 0:02:22]} 20. a4 {[%emt 0:05:53]} Qd7 {[%emt 0:04:44]} 21. Nc3 {[%emt 0:00:47]} Qc7 {[%emt 0:06:49]} 22. Qb3 {[%emt 0:04:00]} Nd7 {[%emt 0:02:40]} 23. Nb5 {[%emt 0:01:47]} Qd8 {[%emt 0:01:42]} 24. g5 {[%emt 0:04:53]} Ndb6 {[%emt 0:01:32]} 25. Bxg7 {[%emt 0:09:13]} Kxg7 {[%emt 0:00:09]} 26. h4 {[%emt 0:00:59]} h5 {[%emt 0:05:58]} 27. Rhe1 {[%emt 0:06:59]} Rc5 {[%emt 0:02:44]} *

[Event "FIDE WYCC Open U14 2023"]
[Site "Montesilvano"]
[Date "2023.11.24"]
[Round "11.1"]
[White "Banh Gia Huy"]
[Black "Cieslak, Patryk"]
[Result "1/2-1/2"]
[ECO "B97"]
[WhiteElo "2397"]
[BlackElo "2284"]
[Annotator "RC"]
[PlyCount "100"]
[EventDate "2023.11.13"]
[EventType "swiss"]
[EventCountry "ITA"]
[SourceTitle "playchess.com"]
[Source "ChessBase"]
[SourceQuality "1"]
[TimeControl "40/5400+30:1800+30"]

1. e4 {[%emt 0:00:01]} c5 {[%emt 0:00:01]} 2. Nf3 {[%emt 0:00:05]} d6 {[%emt 0:00:03]} 3. d4 {[%emt 0:00:20]} cxd4 {[%emt 0:00:01]} 4. Nxd4 {[%emt 0:00:02]} Nf6 {[%emt 0:00:02]} 5. Nc3 {[%emt 0:00:09]} a6 {[%emt 0:00:02]} 6. Bg5 {[%emt 0:00:04]} e6 {[%emt 0:00:05]} 7. f4 {[%emt 0:00:03]} Qb6 {[%emt 0:00:03]} 8. Qd2 {[%emt 0:08:10]} Qxb2 {[%emt 0:00:54]} 9. Rb1 {[%emt 0:00:01]} Qa3 {[%emt 0:00:02]} 10. e5 {[%emt 0:00:26]} dxe5 {[%emt 0:00:18]} 11. fxe5 {[%emt 0:00:03]} h6 {[%emt 0:00:23]} 12. Bh4 {[%emt 0:00:01]} Nfd7 {[%emt 0:00:01]} 13. Ne4 {[%emt 0:01:13]} Qxa2 {[%emt 0:00:11]} 14. Rd1 {[%emt 0:00:09]} Qd5 {[%emt 0:00:09]} 15. Qe3 {[%emt 0:00:02]} Qxe5 {[%emt 0:00:14]} 16. c3 {[%emt 0:01:14]} Bc5 {[%emt 0:00:54]} 17. Bg3 {[%emt 0:00:11]} Qd5 {[%emt 0:00:19]} 18. Bd6 {[%emt 0:15:08]} Bxd6 {[%emt 0:00:15]} 19. Nb5 {[%emt 0:00:06]} Qxd1+ {[%emt 0:00:19]} 20. Kxd1 {[%emt 0:00:02]} axb5 {[%emt 0:00:15]} 21. Nxd6+ {[%emt 0:00:03]} Ke7 {[%emt 0:00:17]} 22. Nxb5 {[%emt 0:13:57]} Rd8 {[%emt 0:19:11]} 23. Kc2 {[%emt 0:01:38]} Kf8 {[%emt 0:10:12]} 24. Bc4 {[%emt 0:09:04]} Nf6 {[%emt 0:09:14]} 25. g4 {[%emt 0:16:23]} Bd7 {[%emt 0:14:04]} 26. g5 {[%emt 0:04:58]} Bxb5 {[%emt 0:14:59]} 27. gxf6 {[%emt 0:03:27]} Bxc4 {[%emt 0:00:39]} 28. Qc5+ {[%emt 0:00:10]} Kg8 {[%emt 0:00:03]} 29. Qxc4 {[%emt 0:00:07]} Nd7 {[%emt 0:05:31]} 30. fxg7 {[%emt 0:06:53]} Ne5 {[%emt 0:00:13]} 31. Qb3 {[%emt 0:01:44]} Rd5 {[%emt 0:02:13]} 32. Qxb7 {[%emt 0:03:04]} Rda5 {[%emt 0:00:38]} 33. Rb1 {[%emt 0:02:10]} Nc4 {[%emt 0:00:26]} 34. Kd3 {[%emt 0:01:07]} Nd6 {[%emt 0:01:20]} 35. Qe7 {[%emt 0:04:12]} Rd5+ {[%emt 0:00:43]} 36. Kc2 {[%emt 0:00:31]} Nf5 {[%emt 0:00:50]} 37. Qc7 {[%emt 0:03:37]} Ne3+ {[%emt 0:00:30]} 38. Kc1 {[%emt 0:02:26]} Rd1+ {[%emt 0:00:57]} 39. Kb2 {[%emt 0:00:01]} Rd2+ {[%emt 0:00:25]} 40. Kb3 {[%emt 0:00:00]} Rdd8 {[%emt 0:00:00]} 41. Kb2 {[%emt 0:03:32]} Rab8+ {[%emt 0:19:04]} 42. Ka1 {[%emt 0:07:18]} Ra8+ {[%emt 0:07:34]} 43. Kb2 {[%emt 0:00:13]} Rac8 {[%emt 0:05:31]} 44. Qf4 {[%emt 0:01:37]} Rd2+ {[%emt 0:01:05]} 45. Kb3 {[%emt 0:01:04]} Rd3 {[%emt 0:08:05]} 46. Qxh6 {[%emt 0:07:54]} Rdxc3+ {[%emt 0:01:32]} 47. Ka4 {[%emt 0:06:30]} Ra8+ {[%emt 0:00:50]} 48. Kb5 {[%emt 0:00:02]} Rb8+ {[%emt 0:00:14]} 49. Ka4 {[%emt 0:00:09]} Ra8+ {[%emt 0:00:41]} 50. Kb5 {[%emt 0:00:17]} Rb8+ {[%emt 0:00:13]} 1/2-1/2